[Event "MCR rapid mládeže 2023 U16"]
[Site "Harachov, Czech Republic"]
[Date "2023.09.09"]
[Round "3.13"]
[White "Bartova, Hana"]
[Black "Kubatova, Beta"]
[Result "1/2-1/2"]
[TimeControl "20min+5s/move"]
[WhiteElo "1389"]
[BlackElo "1376"]

1. e4 {[%clk 00:20:08]} {[%emt 00:00:01]} c6 {[%clk 00:20:08]} {[%emt
00:00:03]} 2. d4 {[%clk 00:20:10]} {[%emt 00:00:03]} d5 {[%clk 00:20:07]}
{[%emt 00:00:05]} 3. exd5 {[%clk 00:20:11]} {[%emt 00:00:04]} cxd5 {[%clk
00:20:10]} {[%emt 00:00:02]} 4. Nf3 {[%clk 00:20:13]} {[%emt 00:00:02]} Bg4
{[%clk 00:19:37]} {[%emt 00:00:38]} 5. Bd3 {[%clk 00:20:02]} {[%emt 00:00:16]}
Nc6 {[%clk 00:19:33]} {[%emt 00:00:10]} 6. c3 {[%clk 00:20:06]} {[%emt
00:00:02]} Nf6 {[%clk 00:19:20]} {[%emt 00:00:17]} 7. h3 {[%clk 00:20:04]}
{[%emt 00:00:07]} Bh5 {[%clk 00:19:23]} {[%emt 00:00:02]} 8. Bf4 {[%clk
00:19:45]} {[%emt 00:00:25]} e6 {[%clk 00:19:22]} {[%emt 00:00:06]} 9. Nbd2
{[%clk 00:19:37]} {[%emt 00:00:13]} Bd6 {[%clk 00:19:15]} {[%emt 00:00:11]} 10.
Bxd6 {[%clk 00:17:13]} {[%emt 00:02:29]} Qxd6 {[%clk 00:19:18]} {[%emt
00:00:02]} 11. O-O {[%clk 00:17:10]} {[%emt 00:00:07]} O-O {[%clk 00:19:20]}
{[%emt 00:00:04]} 12. Qc2 {[%clk 00:16:47]} {[%emt 00:00:29]} Bg6 {[%clk
00:18:59]} {[%emt 00:00:26]} 13. Rae1 {[%clk 00:16:16]} {[%emt 00:00:36]} Bxd3
{[%clk 00:18:49]} {[%emt 00:00:14]} 14. Qxd3 {[%clk 00:16:19]} {[%emt
00:00:03]} Qc7 {[%clk 00:18:42]} {[%emt 00:00:12]} 15. Ne5 {[%clk 00:16:04]}
{[%emt 00:00:20]} Nxe5 {[%clk 00:18:26]} {[%emt 00:00:21]} 16. Rxe5 {[%clk
00:16:04]} {[%emt 00:00:04]} Rac8 {[%clk 00:18:15]} {[%emt 00:00:16]} 17. Rfe1
{[%clk 00:15:05]} {[%emt 00:01:05]} Qb6 {[%clk 00:18:00]} {[%emt 00:00:20]} 18.
b3 {[%clk 00:14:27]} {[%emt 00:00:42]} Qa5 {[%clk 00:17:45]} {[%emt 00:00:20]}
19. Rc1 {[%clk 00:12:36]} {[%emt 00:01:56]} Qxa2 {[%clk 00:16:30]} {[%emt
00:01:20]} 20. Rc2 {[%clk 00:12:22]} {[%emt 00:00:19]} Qa1+ {[%clk 00:15:44]}
{[%emt 00:00:51]} 21. Kh2 {[%clk 00:12:24]} {[%emt 00:00:03]} Qa5 {[%clk
00:15:34]} {[%emt 00:00:15]} 22. g4 {[%clk 00:12:06]} {[%emt 00:00:22]} Qc7
{[%clk 00:15:31]} {[%emt 00:00:08]} 23. Kg2 {[%clk 00:11:43]} {[%emt 00:00:25]}
Nd7 {[%clk 00:14:23]} {[%emt 00:01:16]} 24. Re3 {[%clk 00:10:33]} {[%emt
00:01:13]} Rfe8 {[%clk 00:13:24]} {[%emt 00:01:05]} 25. Nf3 {[%clk 00:10:28]}
{[%emt 00:00:10]} Nf6 {[%clk 00:13:00]} {[%emt 00:00:29]} 26. Ne5 {[%clk
00:09:25]} {[%emt 00:01:09]} Qe7 {[%clk 00:12:28]} {[%emt 00:00:36]} 27. Rf3
{[%clk 00:09:02]} {[%emt 00:00:28]} Rf8 {[%clk 00:12:22]} {[%emt 00:00:11]} 28.
Re3 {[%clk 00:08:23]} {[%emt 00:00:43]} Ne4 {[%clk 00:12:08]} {[%emt 00:00:19]}
29. f3 {[%clk 00:08:01]} {[%emt 00:00:27]} Nf6 {[%clk 00:12:11]} {[%emt
00:00:02]} 30. Kg3 {[%clk 00:07:29]} {[%emt 00:00:37]} Qd6 {[%clk 00:12:15]}
{[%emt 00:00:01]} 31. Kg2 {[%clk 00:07:17]} {[%emt 00:00:18]} Qe7 {[%clk
00:12:17]} {[%emt 00:00:03]} 32. Kg3 {[%clk 00:07:17]} {[%emt 00:00:05]}
1/2-1/2

[Event "MCR rapid mládeže 2023 U16"]
[Site "Harachov, Czech Republic"]
[Date "2023.09.09"]
[Round "3.14"]
[White "Buchtova, Viktorie"]
[Black "Urvalkova, Ema"]
[Result "1-0"]
[TimeControl "20min+5s/move"]
[WhiteElo "1556"]
[BlackElo "1072"]

1. e4 {[%clk 00:20:09]} c5 {[%clk 00:20:09]} {[%emt 00:00:02]} 2. Nf3 {[%clk
00:20:12]} {[%emt 00:00:01]} Nc6 {[%clk 00:20:13]} {[%emt 00:00:02]} 3. d4
{[%clk 00:20:17]} cxd4 {[%clk 00:20:16]} {[%emt 00:00:02]} 4. Nxd4 {[%clk
00:20:20]} {[%emt 00:00:01]} g6 {[%clk 00:20:20]} {[%emt 00:00:01]} 5. Nc3
{[%clk 00:20:21]} {[%emt 00:00:04]} Bg7 {[%clk 00:20:23]} {[%emt 00:00:01]} 6.
Be3 {[%clk 00:20:24]} {[%emt 00:00:03]} Nf6 {[%clk 00:20:26]} {[%emt 00:00:02]}
7. Bc4 {[%clk 00:20:26]} {[%emt 00:00:03]} O-O {[%clk 00:20:27]} {[%emt
00:00:04]} 8. Bb3 {[%clk 00:20:30]} {[%emt 00:00:02]} Qa5 {[%clk 00:20:20]}
{[%emt 00:00:11]} 9. f3 {[%clk 00:20:22]} {[%emt 00:00:14]} d6 {[%clk
00:19:53]} {[%emt 00:00:32]} 10. Qd2 {[%clk 00:20:17]} {[%emt 00:00:11]} Bd7
{[%clk 00:19:30]} {[%emt 00:00:27]} 11. O-O-O {[%clk 00:20:18]} {[%emt
00:00:04]} Rac8 {[%clk 00:19:11]} {[%emt 00:00:24]} 12. h4 {[%clk 00:19:58]}
{[%emt 00:00:25]} Nxd4 {[%clk 00:18:04]} {[%emt 00:01:14]} 13. Bxd4 {[%clk
00:19:59]} {[%emt 00:00:04]} a6 {[%clk 00:17:54]} {[%emt 00:00:16]} 14. h5
{[%clk 00:19:37]} {[%emt 00:00:26]} Nxh5 {[%clk 00:17:05]} {[%emt 00:00:53]} 15.
Bxg7 {[%clk 00:19:36]} {[%emt 00:00:06]} Nxg7 {[%clk 00:16:36]} {[%emt
00:00:34]} 16. Qh6 {[%clk 00:18:59]} {[%emt 00:00:40]} Nh5 {[%clk 00:14:42]}
{[%emt 00:02:02]} 17. g4 {[%clk 00:18:57]} {[%emt 00:00:06]} Rc5 {[%clk
00:13:34]} {[%emt 00:01:14]} 18. gxh5 {[%clk 00:17:47]} {[%emt 00:01:15]} Rxh5
{[%clk 00:13:33]} {[%emt 00:00:06]} 19. Rxh5 {[%clk 00:17:43]} {[%emt
00:00:08]} Qxh5 {[%clk 00:13:17]} {[%emt 00:00:23]} 20. Qxh5 {[%clk 00:17:45]}
{[%emt 00:00:03]} gxh5 {[%clk 00:13:16]} {[%emt 00:00:06]} 21. Rh1 {[%clk
00:17:20]} {[%emt 00:00:30]} Kh8 {[%clk 00:12:48]} {[%emt 00:00:33]} 22. Rxh5
{[%clk 00:17:03]} {[%emt 00:00:20]} b5 {[%clk 00:11:51]} {[%emt 00:01:03]} 23.
Nd5 {[%clk 00:15:47]} {[%emt 00:01:21]} Re8 {[%clk 00:09:18]} {[%emt 00:02:38]}
24. Nc7 {[%clk 00:15:46]} {[%emt 00:00:06]} Rg8 {[%clk 00:08:24]} {[%emt
00:00:58]} 25. Nxa6 {[%clk 00:15:04]} {[%emt 00:00:49]} Rg3 {[%clk 00:08:03]}
{[%emt 00:00:26]} 26. Nb8 {[%clk 00:09:21]} {[%emt 00:05:48]} Be6 {[%clk
00:07:53]} {[%emt 00:00:15]} 27. Bxe6 {[%clk 00:08:46]} {[%emt 00:00:40]} fxe6
{[%clk 00:07:55]} {[%emt 00:00:02]} 28. Rh6 {[%clk 00:08:38]} {[%emt 00:00:13]}
e5 {[%clk 00:07:08]} {[%emt 00:00:53]} 29. Nc6 {[%clk 00:07:25]} {[%emt
00:01:16]} Rxf3 {[%clk 00:07:02]} {[%emt 00:00:13]} 30. Nxe7 {[%clk 00:07:28]}
{[%emt 00:00:02]} Re3 {[%clk 00:06:12]} {[%emt 00:00:55]} 31. Rh4 {[%clk
00:07:14]} {[%emt 00:00:17]} b4 {[%clk 00:05:27]} {[%emt 00:00:51]} 32. Nd5
{[%clk 00:06:33]} {[%emt 00:00:46]} Rg3 {[%clk 00:05:14]} {[%emt 00:00:19]} 33.
Nxb4 {[%clk 00:06:24]} {[%emt 00:00:14]} Kg7 {[%clk 00:05:15]} {[%emt
00:00:03]} 34. a4 {[%clk 00:06:24]} {[%emt 00:00:06]} h6 {[%clk 00:05:03]}
{[%emt 00:00:17]} 35. a5 {[%clk 00:06:17]} {[%emt 00:00:11]} Kg6 {[%clk
00:05:06]} {[%emt 00:00:02]} 36. a6 {[%clk 00:06:12]} {[%emt 00:00:12]} Kg5
{[%clk 00:05:09]} {[%emt 00:00:01]} 37. Rh1 {[%clk 00:06:15]} {[%emt 00:00:01]}
Kf4 {[%clk 00:04:42]} {[%emt 00:00:33]} 38. Nd5+ {[%clk 00:05:39]} {[%emt
00:00:40]} Kxe4 {[%clk 00:04:18]} {[%emt 00:00:29]} 39. a7 {[%clk 00:05:43]}
{[%emt 00:00:01]} Rg8 {[%clk 00:04:05]} {[%emt 00:00:16]} 40. Nf6+ {[%clk
00:05:46]} {[%emt 00:00:03]} 1-0

[Event "MCR rapid mládeže 2023 U16"]
[Site "Harachov, Czech Republic"]
[Date "2023.09.09"]
[Round "3.15"]
[White "Mik, Tomas"]
[Black "Chernyy, Andrey"]
[Result "1-0"]
[TimeControl "20min+5s/move"]
[WhiteElo "1802"]
[BlackElo "1582"]

1. e4 {[%clk 00:20:07]} {[%emt 00:00:02]} e5 {[%clk 00:20:09]} {[%emt
00:00:02]} 2. Nf3 {[%clk 00:20:11]} {[%emt 00:00:01]} Nc6 {[%clk 00:20:12]}
{[%emt 00:00:02]} 3. Nc3 {[%clk 00:20:09]} {[%emt 00:00:07]} Nf6 {[%clk
00:20:15]} {[%emt 00:00:02]} 4. Bb5 {[%clk 00:20:06]} {[%emt 00:00:08]} Bb4
{[%clk 00:20:17]} {[%emt 00:00:03]} 5. O-O {[%clk 00:20:07]} {[%emt 00:00:04]}
O-O {[%clk 00:20:07]} {[%emt 00:00:15]} 6. d3 {[%clk 00:20:07]} {[%emt
00:00:05]} d6 {[%clk 00:20:05]} {[%emt 00:00:07]} 7. Bg5 {[%clk 00:20:08]}
{[%emt 00:00:03]} Bxc3 {[%clk 00:20:07]} {[%emt 00:00:03]} 8. bxc3 {[%clk
00:20:12]} {[%emt 00:00:02]} a6 {[%clk 00:20:06]} {[%emt 00:00:06]} 9. Ba4
{[%clk 00:20:08]} {[%emt 00:00:09]} h6 {[%clk 00:19:44]} {[%emt 00:00:27]} 10.
Bd2 {[%clk 00:20:00]} {[%emt 00:00:13]} b5 {[%clk 00:19:36]} {[%emt 00:00:13]}
11. Bb3 {[%clk 00:20:00]} {[%emt 00:00:05]} Be6 {[%clk 00:19:15]} {[%emt
00:00:25]} 12. Re1 {[%clk 00:19:51]} {[%emt 00:00:14]} Ne7 {[%clk 00:18:32]}
{[%emt 00:00:48]} 13. Nh4 {[%clk 00:18:46]} {[%emt 00:01:10]} Bxb3 {[%clk
00:17:08]} {[%emt 00:01:29]} 14. axb3 {[%clk 00:18:25]} {[%emt 00:00:26]} c5
{[%clk 00:17:07]} {[%emt 00:00:06]} 15. Qf3 {[%clk 00:18:15]} {[%emt 00:00:16]}
Qd7 {[%clk 00:16:36]} {[%emt 00:00:36]} 16. Bxh6 {[%clk 00:17:24]} {[%emt
00:00:56]} Ng6 {[%clk 00:13:21]} {[%emt 00:03:20]} 17. Bg5 {[%clk 00:16:30]}
{[%emt 00:00:59]} Nh7 {[%clk 00:12:45]} {[%emt 00:00:40]} 18. Qh5 {[%clk
00:15:45]} {[%emt 00:00:50]} Nxh4 {[%clk 00:11:21]} {[%emt 00:01:30]} 19. Bxh4
{[%clk 00:15:22]} {[%emt 00:00:28]} Rfe8 {[%clk 00:09:56]} {[%emt 00:01:30]} 20.
Re3 {[%clk 00:14:50]} {[%emt 00:00:37]} Re6 {[%clk 00:08:59]} {[%emt 00:01:01]}
21. Rg3 {[%clk 00:14:10]} {[%emt 00:00:46]} Kh8 {[%clk 00:05:52]} {[%emt
00:03:12]} 22. Qg4 {[%clk 00:13:41]} {[%emt 00:00:33]} g6 {[%clk 00:05:13]}
{[%emt 00:00:44]} 23. Rh3 {[%clk 00:12:22]} {[%emt 00:01:24]} Kg8 {[%clk
00:04:01]} {[%emt 00:01:18]} 24. Bg5 {[%clk 00:09:18]} {[%emt 00:03:09]} f6
{[%clk 00:02:18]} {[%emt 00:01:48]} 25. Rxh7 {[%clk 00:07:57]} {[%emt
00:01:25]} Kxh7 {[%clk 00:01:10]} {[%emt 00:01:14]} 26. Bxf6 {[%clk 00:07:57]}
{[%emt 00:00:05]} g5 {[%clk 00:00:42]} {[%emt 00:00:33]} 27. Qh5+ {[%clk
00:07:15]} {[%emt 00:00:47]} Kg8 {[%clk 00:00:39]} {[%emt 00:00:07]} 28. Qh8+
{[%clk 00:07:17]} {[%emt 00:00:03]} Kf7 {[%clk 00:00:40]} {[%emt 00:00:04]} 29.
Qg7+ {[%clk 00:07:20]} {[%emt 00:00:03]} Ke8 {[%clk 00:00:42]} {[%emt
00:00:02]} 30. Qg8# {[%clk 00:07:24]} {[%emt 00:00:02]} 1-0

[Event "MCR rapid mládeže 2023 U16"]
[Site "Harachov, Czech Republic"]
[Date "2023.09.09"]
[Round "3.16"]
[White "Bara, Jan"]
[Black "Svadlenka, Michal"]
[Result "1-0"]
[TimeControl "20min+5s/move"]
[WhiteElo "1823"]
[BlackElo "1451"]

1. d4 {[%clk 00:20:08]} {[%emt 00:00:01]} Nf6 {[%clk 00:20:09]} {[%emt
00:00:02]} 2. c4 {[%clk 00:20:12]} {[%emt 00:00:01]} g6 {[%clk 00:20:13]}
{[%emt 00:00:01]} 3. Nc3 {[%clk 00:20:16]} {[%emt 00:00:01]} Bg7 {[%clk
00:20:16]} {[%emt 00:00:01]} 4. e4 {[%clk 00:20:19]} {[%emt 00:00:01]} d6
{[%clk 00:20:20]} {[%emt 00:00:01]} 5. f4 {[%clk 00:20:23]} {[%emt 00:00:02]}
O-O {[%clk 00:20:21]} {[%emt 00:00:04]} 6. Nf3 {[%clk 00:20:26]} {[%emt
00:00:01]} Nbd7 {[%clk 00:20:22]} {[%emt 00:00:05]} 7. Be2 {[%clk 00:19:52]}
{[%emt 00:00:39]} b6 {[%clk 00:18:04]} {[%emt 00:02:23]} 8. O-O {[%clk
00:18:21]} {[%emt 00:01:36]} Bb7 {[%clk 00:17:57]} {[%emt 00:00:12]} 9. Qc2
{[%clk 00:16:05]} {[%emt 00:02:21]} Re8 {[%clk 00:17:06]} {[%emt 00:00:56]} 10.
e5 {[%clk 00:14:55]} {[%emt 00:01:16]} dxe5 {[%clk 00:13:39]} {[%emt 00:03:31]}
11. fxe5 {[%clk 00:14:51]} {[%emt 00:00:09]} Ng4 {[%clk 00:12:09]} {[%emt
00:01:35]} 12. Ng5 {[%clk 00:07:29]} {[%emt 00:07:27]} Nh6 {[%clk 00:11:34]}
{[%emt 00:00:40]} 13. g4 {[%clk 00:07:10]} {[%emt 00:00:25]} c5 {[%clk
00:09:36]} {[%emt 00:02:03]} 14. Nd5 {[%clk 00:05:39]} {[%emt 00:01:36]} cxd4
{[%clk 00:07:37]} {[%emt 00:02:03]} 15. e6 {[%clk 00:05:13]} {[%emt 00:00:31]}
Nf6 {[%clk 00:03:19]} {[%emt 00:04:23]} 16. exf7+ {[%clk 00:04:34]} {[%emt
00:00:44]} Nxf7 {[%clk 00:03:22]} {[%emt 00:00:03]} 17. Nxf7 {[%clk 00:04:26]}
{[%emt 00:00:13]} Kxf7 {[%clk 00:03:15]} {[%emt 00:00:12]} 18. g5 {[%clk
00:04:27]} {[%emt 00:00:04]} Bxd5 {[%clk 00:02:24]} {[%emt 00:00:56]} 19. cxd5
{[%clk 00:04:30]} Rc8 {[%clk 00:01:23]} {[%emt 00:01:06]} 20. Qb3 {[%clk
00:04:19]} {[%emt 00:00:16]} Kg8 {[%clk 00:00:36]} {[%emt 00:00:52]} 21. gxf6
{[%clk 00:04:05]} {[%emt 00:00:19]} exf6 {[%clk 00:00:23]} {[%emt 00:00:18]} 22.
Bb5 {[%clk 00:02:51]} {[%emt 00:01:19]} Re4 {[%clk 00:00:19]} {[%emt 00:00:10]}
23. d6+ {[%clk 00:02:25]} {[%emt 00:00:31]} Kh8 {[%clk 00:00:23]} 24. d7 {[%clk
00:02:26]} {[%emt 00:00:04]} Rc5 {[%clk 00:00:21]} {[%emt 00:00:07]} 25. Qf3
{[%clk 00:01:39]} {[%emt 00:00:52]} f5 {[%clk 00:00:16]} {[%emt 00:00:10]} 26.
a4 {[%clk 00:01:17]} {[%emt 00:00:27]} a6 {[%clk 00:00:17]} {[%emt 00:00:04]}
27. b4 {[%clk 00:01:12]} {[%emt 00:00:10]} Rc3 {[%clk 00:00:17]} {[%emt
00:00:04]} 28. Qxc3 {[%emt 00:01:05]} dxc3 {[%clk 00:00:18]} {[%emt 00:00:03]}
29. Bc6 {[%clk 00:00:14]} {[%emt 00:00:05]} Rg4+ {[%clk 00:00:18]} {[%emt
00:00:05]} 30. Kh1 {[%clk 00:00:17]} {[%emt 00:00:02]} Rc4 {[%clk 00:00:14]}
{[%emt 00:00:08]} 31. b5 {[%clk 00:00:20]} {[%emt 00:00:03]} c2 {[%clk
00:00:15]} {[%emt 00:00:04]} 32. Ra3 {[%clk 00:00:15]} {[%emt 00:00:08]} a5
{[%clk 00:00:11]} {[%emt 00:00:11]} 33. Re3 {[%clk 00:00:19]} {[%emt 00:00:01]}
Bf8 {[%clk 00:00:09]} {[%emt 00:00:08]} 34. Re8 {[%clk 00:00:21]} {[%emt
00:00:02]} Qh4 {[%clk 00:00:08]} {[%emt 00:00:06]} 35. Rxf8+ {[%clk 00:00:16]}
{[%emt 00:00:10]} Kg7 {[%clk 00:00:12]} {[%emt 00:00:01]} 36. d8=Q {[%clk
00:00:18]} {[%emt 00:00:04]} Qh3 {[%clk 00:00:07]} {[%emt 00:00:09]} 37. Qf6#
{[%clk 00:00:19]} {[%emt 00:00:02]} Kh6 {[%clk 00:00:11]} {[%emt 00:00:03]} 38.
Be4+ {[%emt 00:00:20]} Kg7 {[%emt 00:00:01]} 39. Bc6# {[%emt 00:00:06]} Kh6 40.
Bg2+ Qh4 41. Bc6+ {[%emt 00:00:02]} Kg7 {[%emt 00:00:01]} 42. Qd8 Qh3 {[%emt
00:00:01]} 43. Qf6# {[%emt 00:00:01]} Kh6 {[%emt 00:00:02]} 44. Bg2+ {[%emt
00:00:02]} Kg7 {[%emt 00:00:08]} 45. Bc6# {[%emt 00:00:06]} Kh6 {[%clk
00:20:05]} {[%emt 00:00:10]} 1-0

[Event "MCR rapid mládeže 2023 U16"]
[Site "Harachov, Czech Republic"]
[Date "2023.09.09"]
[Round "3.17"]
[White "Tejnor, Martin"]
[Black "Mydlar, Matej"]
[Result "0-1"]
[TimeControl "20min+5s/move"]
[WhiteElo "1434"]
[BlackElo "1711"]

1. e4 {[%clk 00:20:09]} c5 {[%clk 00:20:10]} 2. Nf3 {[%clk 00:20:12]} {[%emt
00:00:02]} d6 {[%clk 00:20:14]} 3. d4 {[%clk 00:20:16]} {[%emt 00:00:01]} cxd4
{[%clk 00:20:18]} 4. Nxd4 {[%clk 00:20:20]} {[%emt 00:00:01]} Nf6 {[%clk
00:20:22]} {[%emt 00:00:01]} 5. Nc3 {[%clk 00:20:24]} {[%emt 00:00:01]} Nc6
{[%clk 00:20:26]} 6. Bg5 {[%clk 00:20:28]} {[%emt 00:00:02]} e6 {[%clk
00:20:22]} {[%emt 00:00:09]} 7. Be2 {[%clk 00:19:16]} {[%emt 00:01:17]} Be7
{[%clk 00:20:22]} {[%emt 00:00:05]} 8. Be3 {[%clk 00:18:30]} {[%emt 00:00:51]}
e5 {[%clk 00:20:13]} {[%emt 00:00:15]} 9. Nb3 {[%clk 00:18:06]} {[%emt
00:00:28]} Be6 {[%clk 00:20:14]} {[%emt 00:00:04]} 10. O-O {[%clk 00:18:05]}
{[%emt 00:00:06]} O-O {[%clk 00:20:17]} {[%emt 00:00:02]} 11. f3 {[%clk
00:17:34]} {[%emt 00:00:36]} a5 {[%clk 00:20:20]} {[%emt 00:00:03]} 12. a4
{[%clk 00:17:24]} {[%emt 00:00:14]} Nb4 {[%clk 00:20:16]} {[%emt 00:00:09]} 13.
Nb5 {[%clk 00:16:50]} {[%emt 00:00:39]} Rc8 {[%clk 00:18:00]} {[%emt 00:02:20]}
14. Rc1 {[%clk 00:16:07]} {[%emt 00:00:48]} d5 {[%clk 00:17:18]} {[%emt
00:00:47]} 15. exd5 {[%clk 00:15:29]} {[%emt 00:00:44]} Nbxd5 {[%clk 00:16:01]}
{[%emt 00:01:21]} 16. Bf2 {[%clk 00:15:04]} {[%emt 00:00:30]} Nf4 {[%clk
00:15:32]} {[%emt 00:00:34]} 17. Nc3 {[%clk 00:14:31]} {[%emt 00:00:38]} Qxd1
{[%clk 00:14:51]} {[%emt 00:00:46]} 18. Rfxd1 {[%clk 00:14:31]} {[%emt
00:00:05]} Rxc3 {[%clk 00:14:53]} {[%emt 00:00:02]} 19. bxc3 {[%clk 00:14:31]}
{[%emt 00:00:05]} Nxe2+ {[%clk 00:14:57]} 20. Kf1 {[%clk 00:14:31]} {[%emt
00:00:05]} Nxc1 {[%clk 00:15:01]} {[%emt 00:00:02]} 21. Rxc1 {[%clk 00:14:34]}
Bxb3 {[%clk 00:14:52]} {[%emt 00:00:15]} 22. cxb3 {[%clk 00:14:37]} {[%emt
00:00:02]} Rc8 {[%clk 00:14:49]} {[%emt 00:00:07]} 23. Ke2 {[%clk 00:14:37]}
{[%emt 00:00:05]} h5 {[%clk 00:14:51]} {[%emt 00:00:03]} 24. Bb6 {[%clk
00:14:29]} {[%emt 00:00:13]} Bd8 {[%clk 00:14:46]} {[%emt 00:00:10]} 25. Be3
{[%clk 00:14:29]} {[%emt 00:00:04]} Nd5 {[%clk 00:14:47]} {[%emt 00:00:05]} 26.
Bd2 {[%clk 00:14:32]} {[%emt 00:00:02]} Bb6 {[%clk 00:14:33]} {[%emt 00:00:19]}
27. c4 {[%clk 00:14:14]} {[%emt 00:00:24]} Nf4+ {[%clk 00:14:28]} {[%emt
00:00:09]} 28. Kf1 {[%clk 00:14:12]} {[%emt 00:00:07]} Ne6 {[%clk 00:13:51]}
{[%emt 00:00:41]} 29. Re1 {[%clk 00:14:07]} {[%emt 00:00:10]} f6 {[%clk
00:13:47]} {[%emt 00:00:09]} 30. Bc3 {[%clk 00:14:00]} {[%emt 00:00:12]} Nd4
{[%clk 00:13:48]} {[%emt 00:00:05]} 31. Rb1 {[%clk 00:14:03]} {[%emt 00:00:02]}
Nc6 {[%clk 00:12:45]} {[%emt 00:01:08]} 32. Ke2 {[%clk 00:14:03]} {[%emt
00:00:05]} Nb4 {[%clk 00:12:37]} {[%emt 00:00:13]} 33. Rd1 {[%clk 00:14:02]}
{[%emt 00:00:06]} Rd8 {[%clk 00:12:39]} {[%emt 00:00:03]} 34. Rc1 {[%clk
00:13:59]} {[%emt 00:00:08]} Na2 {[%clk 00:12:35]} {[%emt 00:00:09]} 35. Rc2
{[%clk 00:13:59]} {[%emt 00:00:05]} Nxc3+ {[%clk 00:12:38]} {[%emt 00:00:02]}
36. Rxc3 {[%clk 00:14:03]} {[%emt 00:00:01]} Bc5 {[%clk 00:12:41]} {[%emt
00:00:02]} 37. Rc1 {[%clk 00:14:02]} {[%emt 00:00:06]} Bb4 {[%clk 00:12:43]}
{[%emt 00:00:03]} 38. Rb1 {[%clk 00:14:05]} {[%emt 00:00:02]} Rd2+ {[%clk
00:12:46]} {[%emt 00:00:02]} 39. Kf1 {[%clk 00:14:07]} {[%emt 00:00:03]} b6
{[%clk 00:12:47]} {[%emt 00:00:04]} 40. h3 {[%clk 00:14:02]} {[%emt 00:00:10]}
Kf7 {[%clk 00:12:51]} 41. Kg1 {[%clk 00:13:48]} {[%emt 00:00:19]} Ke6 {[%clk
00:12:54]} {[%emt 00:00:03]} 42. Kh2 {[%clk 00:13:51]} {[%emt 00:00:01]} h4
{[%clk 00:12:58]} {[%emt 00:00:01]} 43. Rc1 {[%clk 00:13:40]} {[%emt 00:00:16]}
g5 {[%clk 00:12:46]} {[%emt 00:00:16]} 44. Rb1 {[%clk 00:13:41]} {[%emt
00:00:04]} Kf5 {[%clk 00:12:47]} {[%emt 00:00:05]} 45. Re1 {[%clk 00:13:41]}
{[%emt 00:00:05]} Rb2 {[%clk 00:12:34]} {[%emt 00:00:18]} 46. Re3 {[%clk
00:13:41]} {[%emt 00:00:05]} Bc5 {[%clk 00:12:26]} {[%emt 00:00:13]} 47. Rd3
{[%clk 00:13:43]} {[%emt 00:00:03]} Bf2 {[%clk 00:12:21]} {[%emt 00:00:10]} 48.
Rd1 {[%clk 00:13:40]} {[%emt 00:00:07]} Bg3+ {[%clk 00:12:22]} {[%emt
00:00:05]} 49. Kg1 {[%clk 00:13:44]} {[%emt 00:00:01]} Rxb3 {[%clk 00:12:25]}
{[%emt 00:00:02]} 0-1